bitfinex/quotes_ETHUSD_20250523
["timestamp","ask_amount","ask_price","bid_price","bid_amount"]
[1748032688560,0.61544024,2536.7,2536.6,61.32662739]
[1748032688992,0.61544024,2536.7,2536.6,69.32662739]
[1748032689736,0.05,2536.9,2536.8,11.94197414]
[1748032690409,0.05,2536.9,2536.8,14.97477674]
[1748032691445,0.05,2536.9,2536.7,8.0]
[1748032691632,3.9918354,2536.9,2536.8,36.766]
[1748032691824,0.05,2536.9,2536.8,36.766]
[1748032692135,3.99181875,2536.9,2536.8,36.766]
[1748032692299,0.05,2536.9,2536.8,36.766]
[1748032692658,0.05,2536.9,2536.8,37.09506914]
[1748032692833,0.05,2536.9,2536.8,59.96181311]
[1748032696466,0.05,2536.9,2536.8,8.32906914]
[1748032696624,3.99181875,2536.9,2536.8,24.60506914]
[1748032696830,3.99181875,2536.9,2536.8,41.61806914]
[1748032697979,0.05,2536.9,2536.8,41.61806914]
[1748032698291,0.05,2536.9,2536.8,45.56004328]
[1748032698495,0.05,2536.9,2536.8,60.54283897]
[1748032698866,0.05,2536.9,2536.8,17.34206914]
[1748032699071,3.99181875,2536.9,2536.8,53.42906914]
[1748032699467,3.99181875,2536.9,2536.8,53.1]
[1748032699683,3.99181875,2536.9,2536.8,41.287]
[1748032701297,3.99181875,2536.9,2536.8,17.34206914]
[1748032701592,4.86172824,2536.9,2536.8,41.61506914]
[1748032702573,3.99181875,2536.9,2536.8,41.61506914]
[1748032703099,3.99181875,2536.9,2536.8,53.099]
[1748032703573,0.05,2536.9,2536.8,53.099]
[1748032703971,0.05,2536.9,2536.8,61.099]
[1748032704300,0.05,2536.9,2536.8,53.9145]
[1748032704301,3.99181875,2536.9,2536.8,53.9145]
[1748032704467,0.05,2536.9,2536.8,53.099]
[1748032704663,0.05,2536.9,2536.8,56.13891984]
[1748032704863,0.05,2536.9,2536.8,68.08089398]
[1748032705603,0.05,2536.9,2536.8,68.57562096]
[1748032705963,0.05,2536.9,2536.8,69.39112096]
[1748032706165,3.9404336,2537.8,2537.3,8.0]
[1748032706401,4.71886253,2538.6,2537.7,6.97477674]
[1748032706602,3.93984897,2538.2,2537.8,28.825]
[1748032706901,3.93969879,2538.3,2537.8,32.76542083]
[1748032707077,3.93934407,2538.5,2537.8,40.76542083]
[1748032707272,3.93945668,2538.5,2537.8,36.825]
[1748032707477,3.93977101,2538.3,2537.8,44.71541392]
[1748032707891,0.71666667,2538.9,2537.8,44.71541392]
[1748032708098,0.71666667,2538.9,2537.9,8.8267]
[1748032708305,3.9398115,2538.2,2538.0,35.447]
[1748032708503,3.93983707,2538.2,2538.0,35.447]
[1748032708802,3.93886875,2538.8,2538.0,35.447]
[1748032709006,3.93957803,2538.4,2538.1,2.78041939]
[1748032709203,3.93957803,2538.4,2538.0,35.447]
[1748032709204,4.73471437,2538.6,2537.8,17.011]
[1748032709503,4.73471211,2538.6,2537.9,23.634]
[1748032709708,3.93958795,2538.4,2537.9,23.634]
[1748032709890,3.93956332,2538.4,2537.9,23.634]
[1748032710101,3.93941482,2538.5,2538.0,3.94999309]
[1748032710320,3.93941482,2538.5,2538.0,7.89008093]
[1748032710633,3.93989953,2538.2,2537.9,23.634]
[1748032711406,3.93995762,2538.1,2537.9,23.634]
[1748032711602,3.93984344,2538.2,2537.9,23.634]
[1748032711786,3.93958886,2538.4,2537.9,23.634]
[1748032712124,3.93967381,2538.3,2537.9,27.9129196]
[1748032712621,3.94011032,2538.0,2537.9,23.96292651]
[1748032715510,3.94011032,2538.0,2537.9,0.32892651]
[1748032716848,3.93841602,2539.1,2537.9,0.32892651]
[1748032717054,3.93971845,2538.3,2538.0,5.02412995]
[1748032717251,3.93992453,2538.2,2538.0,5.02412995]
[1748032717543,3.93992453,2538.2,2538.0,8.97412304]
[1748032717696,3.93995508,2538.1,2538.0,5.02412995]
[1748032717893,0.46048835,2538.7,2537.8,40.638]
[1748032717894,3.94026557,2537.9,2537.8,40.638]
[1748032718346,3.94026557,2537.9,2537.8,17.011]
[1748032718504,3.94026557,2537.9,2537.8,40.637]
[1748032720537,0.782,2538.3,2537.8,40.96593947]
[1748032720929,3.94008613,2538.1,2537.8,40.637]
[1748032721101,3.94013373,2538.0,2537.8,40.637]
[1748032721306,3.94026557,2537.9,2537.8,40.637]
[1748032721728,0.782,2538.3,2537.8,40.637]
[1748032722046,3.9401838,2538.0,2537.8,40.637]
[1748032722246,3.94026557,2537.9,2537.8,40.637]
[1748032722448,3.9400499,2538.1,2537.8,44.58699309]
[1748032722815,3.94006222,2538.1,2537.9,5.02412995]
[1748032723822,3.93987798,2538.2,2537.9,5.02412995]
[1748032724024,3.94011032,2538.0,2537.9,5.02412995]
[1748032724337,0.8178,2538.7,2537.9,8.96432304]
[1748032724552,3.93980842,2538.2,2537.8,44.58699309]
[1748032724755,3.9399978,2538.1,2537.8,49.94006251]
[1748032724925,3.93986673,2538.2,2537.8,49.94006251]
[1748032725126,3.94021615,2538.0,2537.8,40.96593947]
[1748032725453,3.94018971,2538.0,2537.9,34.817]
[1748032725629,3.94011032,2538.0,2537.9,34.817]
[1748032725826,3.94011032,2538.0,2537.9,23.008]
[1748032727015,3.94011032,2538.0,2537.8,17.33993947]
[1748032727377,3.93972564,2538.3,2537.9,28.03212995]
[1748032727538,3.93957736,2538.4,2537.9,31.97232828]
[1748032727904,3.9396842,2538.3,2537.9,28.03212995]
[1748032728551,0.8178,2538.7,2538.2,5.02412995]
[1748032728755,3.93926711,2538.6,2538.2,5.02412995]
[1748032728951,3.93939399,2538.5,2538.2,5.02412995]
[1748032729140,3.93958568,2538.4,2538.2,5.02412995]
[1748032729654,3.94026557,2537.9,2537.8,17.33993947]
[1748032729830,3.94026557,2537.9,2537.8,40.34793947]
[1748032730033,3.94026557,2537.9,2537.8,17.33993947]
[1748032730232,3.94026557,2537.9,2537.8,40.34793947]
[1748032731358,3.94014215,2538.0,2537.8,40.34793947]
[1748032731359,3.94020726,2538.0,2537.8,40.34793947]
[1748032731723,0.825,2538.3,2537.8,40.34793947]
[1748032731724,3.9400014,2538.1,2537.8,40.34793947]
[1748032731925,3.93993097,2538.2,2537.8,40.34793947]
[1748032732119,3.94003522,2538.1,2537.8,40.34793947]
[1748032732458,3.9401951,2538.0,2537.8,40.34793947]
[1748032733276,3.9401951,2538.0,2537.9,34.187]
[1748032733483,3.94004541,2538.1,2537.9,34.187]
[1748032733777,3.93972125,2538.3,2537.9,34.187]
[1748032733944,0.825,2538.7,2537.9,35.08510936]
[1748032734145,3.93978753,2538.3,2537.9,35.08510936]
[1748032734357,3.93928823,2538.6,2538.0,3.94007658]
[1748032734561,3.93933722,2538.5,2538.1,5.02412995]
[1748032734883,3.93964735,2538.3,2538.1,5.02412995]
[1748032735582,3.93979985,2538.2,2538.1,5.02412995]
[1748032735770,3.93979985,2538.2,2538.1,11.808]
[1748032736157,3.93973422,2538.3,2538.1,11.808]
[1748032736365,3.93964464,2538.3,2538.2,22.379]
[1748032736564,3.93959022,2538.4,2538.2,22.379]
[1748032736775,3.93947468,2538.5,2538.2,22.379]
[1748032737087,3.93949906,2538.4,2538.2,22.379]
[1748032737254,3.93941875,2538.5,2538.2,22.379]
[1748032737453,3.9394922,2538.4,2538.2,22.379]
[1748032737988,0.05,2538.9,2538.2,22.379]
[1748032738178,3.93931146,2538.6,2538.2,22.379]
[1748032738378,3.93941513,2538.5,2538.2,22.379]
[1748032739690,3.93941513,2538.5,2538.1,3.93993723]
[1748032739893,3.93941513,2538.5,2538.2,34.184]
[1748032740186,3.98871967,2538.9,2538.3,5.02412995]
[1748032740187,3.93926042,2538.6,2538.3,5.02412995]
[1748032740350,3.93940255,2538.5,2538.3,5.02412995]
[1748032740560,3.93920739,2538.6,2538.3,5.02412995]
[1748032740872,3.93922899,2538.6,2538.3,5.02412995]
[1748032741200,0.05,2538.9,2538.3,5.02412995]
[1748032741201,3.93940987,2538.5,2538.3,5.02412995]
[1748032741396,3.93923902,2538.6,2538.3,5.02412995]
[1748032741601,0.05,2538.9,2538.6,3.93909436]
[1748032741895,0.05,2538.9,2538.6,5.02412995]
[1748032742097,0.05,2538.9,2538.6,8.96324723]
[1748032742267,0.05,2538.9,2538.6,5.02412995]
[1748032742596,3.9390239,2538.7,2538.6,5.02412995]
[1748032742801,3.93893866,2538.8,2538.7,11.807]
[1748032742998,3.93893866,2538.8,2538.7,51.185]
[1748032743612,0.05,2538.9,2538.7,51.185]
[1748032743909,0.05,2538.9,2538.8,11.93886875]
[1748032744070,0.05,2538.9,2538.8,13.10077866]
[1748032744683,0.05,2538.9,2538.8,9.16190991]
[1748032744985,0.05,2538.9,2538.8,13.10077866]
[1748032745185,0.05,2538.9,2538.8,17.05077175]
[1748032745368,0.05,2538.9,2538.8,0.32880991]
[1748032745575,3.98871361,2538.9,2538.8,22.08080991]
[1748032746404,0.05,2538.9,2538.8,27.10493986]
[1748032749093,3.93762855,2539.6,2538.8,35.10493986]
[1748032749339,3.98720041,2539.9,2539.1,5.02412995]
[1748032749521,3.93787019,2539.5,2539.2,11.805]
[1748032750024,0.05,2539.9,2539.2,11.805]
[1748032750231,3.93774778,2539.6,2539.2,11.805]
[1748032750383,0.05,2539.9,2539.2,15.94068561]
[1748032750583,0.05,2539.9,2539.4,5.02412995]
[1748032750781,0.05,2539.9,2539.5,25.68870966]
[1748032751197,0.05,2539.9,2539.7,5.02412995]
[1748032751415,0.05,2539.9,2539.8,16.997]
[1748032752410,3.98716288,2539.9,2539.8,16.997]
[1748032752616,3.98716288,2539.9,2539.8,38.746]
[1748032752988,3.98716288,2539.9,2539.8,16.997]
[1748032753208,0.05,2539.9,2539.8,38.746]
[1748032754521,3.98716288,2539.9,2539.8,38.746]
[1748032756019,0.05,2540.9,2539.9,0.8257]
[1748032756321,0.05,2540.9,2540.3,5.02412995]
[1748032756519,3.93645033,2540.4,2540.3,11.802]
[1748032756726,3.93633038,2540.5,2540.4,21.747]
[1748032757236,3.93623302,2540.5,2540.4,21.744]
[1748032757404,3.93600327,2540.7,2540.4,21.744]
[1748032757734,3.93609086,2540.6,2540.5,21.744]
[1748032758060,3.93576826,2540.8,2540.5,21.744]
[1748032758061,0.05,2540.9,2540.5,21.744]
[1748032758443,3.93607809,2540.6,2540.5,21.744]
[1748032758846,3.93588441,2540.8,2540.5,21.744]
[1748032759160,3.93580958,2540.8,2540.5,21.744]
[1748032759381,3.98570687,2540.9,2540.5,21.744]
[1748032759666,0.05,2540.9,2540.5,25.68020792]
[1748032759836,0.05,2540.9,2540.5,25.28348516]
[1748032760033,3.934852,2541.4,2540.5,25.28348516]
[1748032760034,5.26127344,2543.1,2541.4,1.8497507]
[1748032760360,5.26127344,2543.1,2542.2,9.69853076]
[1748032760361,2.67111406,2542.3,2542.2,9.69853076]
[1748032760518,2.67111406,2542.3,2542.2,51.61890091]
[1748032760720,2.67111406,2542.3,2542.2,52.68990019]
[1748032760922,2.67111406,2542.3,2542.2,50.54476405]
[1748032761264,2.67111406,2542.3,2542.2,55.566894]
[1748032763100,2.05567382,2542.3,2542.2,55.566894]
[1748032763601,0.05,2542.9,2542.5,8.0]
[1748032763772,0.05,2542.9,2542.6,16.986]
[1748032764902,3.93267264,2542.8,2542.7,21.784]
[1748032765053,4.72420355,2542.8,2542.7,21.784]
[1748032765258,4.72420355,2542.8,2542.5,0.3283314]
[1748032765259,3.93298198,2542.6,2542.5,0.3283314]
[1748032765453,3.93298198,2542.6,2542.2,21.784]
[1748032765454,3.93344609,2542.3,2542.2,21.784]
[1748032765876,4.71674609,2542.3,2542.2,21.784]
[1748032766167,11.795,2542.6,2541.6,16.986]
[1748032766354,3.93421984,2541.8,2541.7,21.784]
[1748032766557,11.794,2543.0,2541.7,21.784]
[1748032766896,22.67679662,2543.6,2541.7,21.784]
[1748032766897,3.9335291,2542.3,2541.7,21.784]
[1748032767101,3.93321824,2542.5,2541.7,25.71834953]
[1748032767262,3.93321824,2542.5,2541.8,3.94999309]
[1748032767462,3.9332972,2542.4,2541.8,3.94999309]
[1748032767695,3.93232266,2543.1,2541.8,3.94999309]
[1748032767860,3.93311262,2542.6,2541.8,7.88412732]
[1748032768061,3.93315551,2542.5,2541.8,3.94999309]
[1748032768262,3.93315551,2542.5,2541.9,21.781]
[1748032768499,3.93330003,2542.4,2541.9,24.7475312]
[1748032768797,3.93330003,2542.4,2541.9,21.781]
[1748032770306,4.71748769,2542.5,2541.9,21.781]
[1748032770657,3.933294,2542.4,2541.9,21.781]
[1748032771363,3.93329137,2542.4,2542.0,0.55]
[1748032771797,3.93329137,2542.4,2541.9,0.55]
[1748032772000,3.93329137,2542.4,2542.2,0.55]
[1748032772861,3.93329137,2542.4,2542.3,21.777]
[1748032773121,4.71753823,2542.5,2542.3,21.777]
[1748032773306,0.7843,2542.5,2542.3,21.777]
[1748032773463,3.93306514,2542.6,2542.3,21.777]
[1748032774396,4.75019269,2542.8,2542.3,21.777]
[1748032774812,4.75023575,2542.8,2542.3,21.777]
[1748032775015,3.93300887,2542.6,2542.3,21.777]
[1748032775510,3.93329137,2542.4,2542.3,21.777]
[1748032776016,3.93360081,2542.2,2541.7,8.55]
[1748032776192,3.93360081,2542.2,2541.8,21.776]
[1748032776699,3.93352056,2542.3,2541.8,21.776]
[1748032777613,0.8175,2542.8,2542.0,0.55]
[1748032777821,0.7857,2543.4,2542.7,5.02412995]
[1748032777977,0.7857,2543.4,2542.8,39.186413]
[1748032778382,3.93197399,2543.3,2542.8,39.186413]
[1748032778688,3.93191044,2543.3,2542.8,38.684]
[1748032779093,0.7857,2543.4,2542.8,17.529]
[1748032779094,3.93245807,2543.0,2542.8,17.529]
[1748032779396,3.93218406,2543.2,2542.9,21.154]
[1748032779603,3.93170385,2543.5,2543.0,5.57412995]
[1748032779803,0.66666667,2543.6,2543.1,21.154]
[1748032779983,3.93180021,2543.4,2543.2,0.55]
[1748032780507,3.93183647,2543.4,2543.2,0.55]
[1748032780691,3.93171307,2543.5,2543.2,0.55]
[1748032780888,3.93182054,2543.4,2543.2,0.55]
[1748032781095,3.9317449,2543.4,2543.2,0.55]
[1748032781614,3.93171771,2543.5,2543.2,0.55]
[1748032783718,3.9317449,2543.4,2543.3,21.701]
[1748032784087,3.93166733,2543.5,2543.3,21.701]
[1748032784599,3.9317121,2543.5,2543.3,21.701]
[1748032784801,3.9317449,2543.4,2543.3,21.151]
[1748032786081,3.9317449,2543.4,2542.8,16.979]
[1748032786082,3.93251799,2542.9,2542.8,16.979]
[1748032786325,3.93313667,2542.5,2542.4,21.149]
[1748032787000,3.93290902,2542.7,2542.4,21.149]
[1748032787195,3.93300027,2542.6,2542.4,21.149]
[1748032787423,3.93282954,2542.7,2542.5,0.55]
[1748032787723,3.93298198,2542.6,2542.5,0.55]
[1748032788217,3.93298198,2542.6,2542.5,21.149]
[1748032789727,3.93373323,2542.2,2542.1,0.55]
[1748032789913,3.93373323,2542.2,2542.1,21.699]
[1748032790349,3.93353163,2542.3,2542.1,21.699]
[1748032790652,3.93360081,2542.2,2542.1,21.699]
[1748032791347,3.93360081,2542.2,2542.1,21.7]
[1748032792322,3.93360081,2542.2,2542.1,30.59152995]
[1748032792526,3.93315374,2542.5,2542.1,30.59152995]
[1748032793949,3.93299848,2542.6,2542.1,30.59152995]
[1748032793950,3.93305487,2542.6,2542.1,30.59152995]
[1748032794154,3.93293271,2542.7,2542.3,0.55]
[1748032794452,3.93293271,2542.7,2542.5,0.55]
[1748032795018,3.93298198,2542.6,2542.5,0.55]
[1748032797357,3.93313667,2542.5,2542.4,8.55]
[1748032797561,3.93304789,2542.6,2542.4,8.55]
[1748032798451,3.93288565,2542.7,2542.4,8.55]
[1748032798659,3.93298428,2542.6,2542.4,8.55]
[1748032799784,3.93298428,2542.6,2542.5,5.36971696]
[1748032800071,3.93298198,2542.6,2542.5,25.90771696]
[1748032801871,3.93290972,2542.7,2542.5,25.90771696]
[1748032802083,3.9320541,2543.2,2542.6,0.55]
[1748032802227,3.93214511,2543.2,2542.8,4.81971696]
[1748032802426,3.93212597,2543.2,2542.9,0.55]
[1748032802661,3.93182353,2543.4,2543.1,5.36971696]
[1748032802863,3.9318995,2543.3,2543.2,21.088]
[1748032807444,3.93220872,2543.1,2543.0,16.975]
[1748032807647,3.93220872,2543.1,2543.0,37.511]
[1748032808043,3.93220872,2543.1,2543.0,38.061]
[1748032808470,3.93220872,2543.1,2543.0,37.511]
[1748032811048,3.93220872,2543.1,2543.0,38.061]
[1748032812554,3.93202476,2543.3,2543.1,0.55]
[1748032812756,0.8042,2543.6,2543.1,0.55]
[1748032812964,3.93199062,2543.3,2543.1,5.36971696]
[1748032814255,3.93176756,2543.4,2543.1,13.36971696]
[1748032814755,3.93198576,2543.3,2543.1,13.36971696]
[1748032814987,3.93198576,2543.3,2543.1,17.31971005]
[1748032815479,3.9320541,2543.2,2543.1,17.31971005]
[1748032817853,3.93179274,2543.4,2543.1,17.31971005]
[1748032818506,3.93181116,2543.4,2543.1,17.31971005]
[1748032819007,3.93220872,2543.1,2543.0,37.511]
[1748032822892,0.8228,2543.7,2543.1,0.55]
[1748032823308,3.93203994,2543.3,2543.1,0.55]
[1748032823624,3.93204013,2543.3,2543.1,0.55]
[1748032823814,3.93204013,2543.3,2543.1,5.36971696]
[1748032823992,3.93182731,2543.4,2543.1,7.20648446]
[1748032824794,3.93138876,2543.7,2543.5,0.55]
[1748032824996,3.93138876,2543.7,2543.6,19.9]
[1748032825219,4.39487488,2543.8,2543.7,0.55]
[1748032825390,3.93117309,2543.8,2543.7,0.55]
[1748032825586,3.93112666,2543.8,2543.7,0.55]
[1748032827596,0.05,2543.9,2543.7,8.59331696]
[1748032827799,0.05,2543.9,2543.8,8.55]
[1748032829429,3.98097212,2543.9,2543.8,19.857]
[1748032830036,0.05,2543.9,2543.8,32.67671696]
[1748032832027,3.93013805,2544.5,2543.9,8.55]
[1748032832231,3.9302876,2544.4,2544.1,5.36971696]
[1748032832428,3.93037484,2544.3,2544.2,8.0]
[1748032832702,3.93013805,2544.5,2544.3,0.55]
[1748032832703,3.93028679,2544.4,2544.3,0.55]
[1748032833006,3.93028679,2544.4,2544.3,19.855]
[1748032835071,3.93019965,2544.4,2544.3,19.855]
[1748032835268,3.93019965,2544.4,2544.3,23.80499309]
[1748032835470,3.9300744,2544.5,2544.3,23.80499309]
[1748032835687,0.05,2544.9,2544.3,23.80499309]
[1748032835988,3.92980688,2544.7,2544.5,0.55]
[1748032836532,3.92980146,2544.7,2544.5,0.55]
[1748032836856,3.92980146,2544.7,2544.5,3.412471]
[1748032837045,3.92983076,2544.7,2544.5,3.412471]
[1748032837344,3.92989074,2544.6,2544.5,3.412471]
[1748032837541,3.93035412,2544.3,2544.2,1.3521]
[1748032837740,3.9306631,2544.1,2544.0,24.969]
[1748032837963,3.9306631,2544.1,2544.0,36.272]
[1748032838382,3.9306631,2544.1,2544.0,36.822]
[1748032838774,0.7777,2544.6,2544.0,36.822]
[1748032838775,3.93057029,2544.2,2544.0,36.822]
[1748032839094,3.9306631,2544.1,2544.0,36.822]
[1748032839789,3.9306631,2544.1,2544.0,40.77199309]
[1748032839978,3.9306631,2544.1,2544.0,48.603]
[1748032840990,3.9306631,2544.1,2544.0,36.272]
[1748032841176,3.9306631,2544.1,2544.0,16.969]
[1748032841364,4.7111631,2544.1,2544.0,16.969]
[1748032841766,4.7111631,2544.1,2544.0,36.27]
[1748032841968,3.93220872,2543.1,2543.0,17.42911336]
[1748032842170,3.93220872,2543.1,2543.0,36.265]
[1748032843195,3.93220872,2543.1,2543.0,36.815]
[1748032843395,3.93213833,2543.2,2543.1,0.55]
[1748032844174,3.93137897,2543.7,2543.1,0.55]
[1748032844379,3.93197588,2543.3,2543.1,0.55]
[1748032845002,3.93173031,2543.5,2543.1,8.55]
[1748032845197,0.7805,2544.0,2543.4,5.36971696]
[1748032845359,3.93142669,2543.7,2543.5,8.55]
[1748032845555,3.93105847,2543.9,2543.7,0.55]
[1748032845756,3.93076514,2544.1,2543.7,17.15171696]
[1748032845976,3.9305086,2544.2,2543.7,17.15171696]
[1748032846307,1.24420179,2544.3,2543.7,17.15171696]
[1748032846308,3.93094135,2544.0,2543.7,17.15171696]
[1748032846513,3.93098718,2543.9,2543.7,21.10171005]
[1748032846674,0.7805,2544.3,2543.8,8.0]
[1748032846870,3.93089027,2544.0,2543.8,8.0]
[1748032848381,3.93097212,2543.9,2543.8,8.55]
[1748032848922,3.93097212,2543.9,2543.8,31.056]
[1748032849507,3.93097212,2543.9,2543.8,19.274]
[1748032849720,3.93097212,2543.9,2543.8,0.55]
[1748032849919,3.93097212,2543.9,2543.8,19.274]
[1748032850418,3.9308881,2544.0,2543.9,0.55]
[1748032851343,3.93074333,2544.1,2543.9,0.55]
[1748032851517,3.9305086,2544.2,2544.0,16.966]
[1748032852029,3.9306301,2544.2,2544.1,0.55]
[1748032852199,3.9306301,2544.2,2544.1,19.274]
[1748032853628,3.9306631,2544.1,2544.0,16.966]
[1748032853921,3.9306631,2544.1,2544.0,35.689]
[1748032855427,4.7212631,2544.1,2544.0,35.689]
[1748032856528,4.7212631,2544.1,2544.0,16.966]
[1748032856693,4.7212631,2544.1,2544.0,35.689]
[1748032864539,3.9306631,2544.1,2544.0,35.689]
[1748032866232,3.9306631,2544.1,2544.0,16.966]
[1748032866562,3.9320541,2543.2,2543.1,16.966]
[1748032866729,3.9320541,2543.2,2543.1,35.119]
[1748032866926,3.9320541,2543.2,2543.1,43.119]
[1748032867132,3.9320541,2543.2,2543.1,43.669]
[1748032867308,3.9320541,2543.2,2543.1,43.119]
[1748032867744,3.9320541,2543.2,2543.1,43.669]
[1748032867943,3.9318426,2543.4,2543.2,0.55]
[1748032868144,3.9318426,2543.4,2543.3,5.36971696]
[1748032869251,3.9318426,2543.4,2543.3,0.55]
[1748032871359,3.93185993,2543.4,2543.3,0.55]
[1748032876360,3.9320541,2543.2,2543.1,24.966]
[1748032876559,3.9320541,2543.2,2543.1,35.121]
[1748032877234,3.9320541,2543.2,2543.1,35.671]
[1748032878769,3.93198131,2543.3,2543.2,0.55]
[1748032878929,3.93182923,2543.4,2543.2,5.36971696]
[1748032879133,3.9318995,2543.3,2543.2,5.36971696]
[1748032881531,4.71021212,2543.7,2543.2,5.36971696]
[1748032881926,0.7789,2543.7,2543.2,5.36971696]
[1748032882172,3.93189825,2543.4,2543.2,9.31971005]
[1748032882346,3.9318995,2543.3,2543.2,9.31971005]
[1748032885047,3.93181866,2543.4,2543.2,9.31971005]
[1748032885253,3.9318995,2543.3,2543.2,9.31971005]
[1748032885463,0.8095,2544.0,2543.2,17.31971005]
[1748032885776,3.9318995,2543.3,2543.2,17.31971005]
[1748032886570,3.9318995,2543.3,2543.2,25.15371696]
[1748032886750,3.9318995,2543.3,2543.2,13.36971696]
[1748032886952,3.9318995,2543.3,2543.2,25.15371696]
[1748032887154,3.9318995,2543.3,2543.2,4.81971696]
[1748032887777,3.9318995,2543.3,2543.2,20.47217633]
[1748032892477,3.9318995,2543.3,2543.1,16.966]
[1748032892478,3.9320541,2543.2,2543.1,16.966]
[1748032892850,3.9320541,2543.2,2543.1,35.123]
[1748032895188,3.93329137,2542.4,2542.3,1.25621336]
[1748032895482,3.93329137,2542.4,2542.3,47.00938969]
[1748032895993,3.93329137,2542.4,2542.3,46.21828969]
[1748032896286,3.93329137,2542.4,2542.3,50.00228969]
[1748032896589,3.93329137,2542.4,2542.3,58.00228969]
[1748032897285,3.93329137,2542.4,2542.3,38.21928969]
[1748032897502,3.93329137,2542.4,2542.3,37.75417633]
[1748032899298,0.7841,2543.1,2542.4,0.55]
[1748032899599,0.7841,2543.1,2542.9,2.86617633]
[1748032899600,3.93236335,2543.0,2542.9,2.86617633]
[1748032899764,0.46370179,2543.4,2543.0,0.55]
[1748032899969,4.39544669,2543.4,2543.3,2.86617633]
[1748032900271,4.39544669,2543.4,2543.3,2.31617633]
[1748032900800,3.9317449,2543.4,2543.3,2.31617633]
[1748032901457,3.9318995,2543.3,2543.2,0.55]
[1748032902333,3.9317449,2543.4,2542.9,20.78617633]
[1748032902334,3.93236335,2543.0,2542.9,20.78617633]
[1748032903088,3.93236335,2543.0,2542.9,20.23617633]
[1748032903325,3.93236335,2543.0,2542.9,17.92]
[1748032904127,3.93236335,2543.0,2542.9,20.23617633]
[1748032905717,3.93236335,2543.0,2542.9,17.92]
[1748032908000,3.93236335,2543.0,2542.9,20.23617633]
[1748032909233,3.93236335,2543.0,2542.9,17.92]
[1748032909519,3.93267264,2542.8,2542.7,2.86617633]
[1748032909719,3.93267264,2542.8,2542.7,17.921]
[1748032910901,3.93267264,2542.8,2542.7,20.23717633]
[1748032911913,3.93267264,2542.8,2542.7,20.78717633]
[1748032912430,3.93329137,2542.4,2542.3,16.969]
[1748032912635,3.93329137,2542.4,2542.3,49.54217633]
[1748032913797,3.93329137,2542.4,2542.3,37.75717633]
[1748032914133,3.93317176,2542.5,2542.4,0.55]
[1748032914295,3.93299395,2542.6,2542.4,4.49999309]
[1748032914501,3.93299395,2542.6,2542.5,2.86617633]
[1748032914696,3.93287077,2542.7,2542.6,0.55]
[1748032919607,3.93329137,2542.4,2542.3,53.248]
[1748032919810,3.93329137,2542.4,2542.3,55.56417633]
[1748032920833,3.93329137,2542.4,2542.3,49.54417633]
[1748032924514,3.93320714,2542.5,2542.3,53.49416942]
[1748032924745,3.93327428,2542.5,2542.3,53.49416942]
[1748032925254,3.93329137,2542.4,2542.3,53.49416942]
[1748032927161,3.9330673,2542.6,2542.4,0.55]
[1748032927336,0.8307,2543.2,2542.6,1.3707]
[1748032927337,3.93236335,2543.0,2542.6,1.3707]
[1748032927537,3.93236335,2543.0,2542.9,2.86617633]
[1748032927731,3.93236335,2543.0,2542.9,20.74817633]
[1748032927930,3.93236335,2543.0,2542.9,20.19817633]
[1748032935055,3.93236335,2543.0,2542.9,17.882]
[1748032935246,3.93329137,2542.4,2542.3,16.969]
[1748032935570,3.93329137,2542.4,2542.3,37.71617633]
[1748032936369,3.9332759,2542.5,2542.3,39.27256657]
[1748032936664,3.9332759,2542.5,2542.4,20.19717633]
[1748032936867,3.9332759,2542.5,2542.4,17.881]
[1748032937086,4.7105759,2542.5,2542.4,17.881]
[1748032937432,3.9332759,2542.5,2542.4,20.74717633]
[1748032938351,3.9332759,2542.5,2542.4,17.881]
[1748032938352,3.93313667,2542.5,2542.4,17.881]
[1748032938691,4.71043667,2542.5,2542.4,17.881]
[1748032941228,3.93360081,2542.2,2542.1,0.05]
[1748032941505,26.83857714,2542.2,2542.1,0.05]
[1748032941660,19.20041697,2542.2,2542.1,0.05]
[1748032941858,27.41752332,2542.2,2542.1,0.05]
[1748032943084,7.63052332,2542.2,2542.1,0.05]
[1748032943291,19.41752332,2542.2,2542.1,0.05]
[1748032944004,19.88122511,2542.2,2542.1,0.05]
[1748032944305,27.88122511,2542.2,2542.1,0.05]
[1748032946105,16.09422511,2542.2,2542.1,0.05]
[1748032946373,27.88322511,2542.2,2542.1,0.05]
[1748032946769,3.93514874,2541.2,2541.1,17.932]
[1748032947606,3.93514874,2541.2,2541.1,20.24817633]
[1748032947803,3.93452943,2541.6,2541.2,0.55]
[1748032948001,3.93468424,2541.5,2541.4,2.86617633]
[1748032948365,3.9349939,2541.3,2541.2,2.31617633]
[1748032948614,3.9349939,2541.3,2541.2,2.86617633]
[1748032948967,3.9349939,2541.3,2541.1,2.07481763]
[1748032949167,3.93514874,2541.2,2541.1,17.938]
[1748032949597,4.72914874,2541.2,2541.1,0.05]
[1748032949780,7.04532507,2541.2,2541.1,0.05]
[1748032949996,4.72914874,2541.2,2541.1,0.05]
[1748032954115,3.93514874,2541.2,2541.1,0.05]
[1748032954405,3.93514874,2541.2,2541.1,17.941]
[1748032957387,3.93514874,2541.2,2541.1,0.05]
[1748032957593,3.93514874,2541.2,2541.1,17.879]
[1748032962510,3.93592317,2540.7,2540.6,17.83]
[1748032962687,4.70542317,2540.7,2540.6,17.83]
[1748032963243,12.70542317,2540.7,2540.6,17.83]
[1748032963386,3.93669789,2540.2,2540.1,0.05]
[1748032965608,3.93669789,2540.2,2540.1,0.8435]
[1748032966390,3.93669789,2540.2,2540.1,0.05]
[1748032967126,3.93669789,2540.2,2540.1,17.883]
[1748032968027,3.93654292,2540.3,2540.2,0.55]
[1748032968224,3.93654292,2540.3,2540.2,1.3435]
[1748032968523,0.46370179,2541.3,2540.2,1.3435]
[1748032968730,4.139,2541.9,2540.6,4.82719058]